Cogmind - Beta 12 @@@ ROGUE MODE // 2023.03.13 @ 01:09:24 Player: Lunatic Blue Result: Destroyed by G-47 Trooper with Particle Gun Performance ------------- Evolutions (2) 1000 Regions Visited (6) 1200 Robots Destroyed (48) 240 Value Destroyed (1353) 1353 Prototype IDs (26) 520 Alien Tech Used (0) 0 Bonus (300) 300 TOTAL SCORE: 4613 Bonus ------- Aligned with FarCom 300 Cogmind --------- Core Integrity 0/550 Matter 257/300 Energy 60/100 System Corruption 0% Temperature Cool (40) Movement Treading (320) Ox2 Location -8/Storage Parts ------- > --- POWER (1) -------- (None) > --- PROPULSION (3) --- Light Treads Light Treads > --- UTILITY (5) ------ Huge Storage Unit Structural Scanner Improved Signal Interpreter Hacking Suite > --- WEAPON (2) ------- Heavy Missile Launcher > --- INVENTORY (25) --- Light Treads Light Treads Wheel Improved VTOL Module Improved VTOL Module Improved VTOL Module Improved VTOL Module Improved VTOL Module Improved VTOL Module Huge Storage Unit Makeshift Sensor Array Transport Network Coupler Light Armor Plating Hacking Suite Long-range Tractor Beam EM Pulse Gun Particle Gun Improved Datajack Katana Greatsword Peak State ------------ > --- POWER ------------ Light Nuclear Core > --- PROPULSION ------- Light Treads Light Treads Improved VTOL Module > --- UTILITY ---------- Huge Storage Unit Weight Redist. System Structural Scanner Makeshift Sensor Array Improved Signal Interpreter > --- WEAPON ----------- EM Pulse Cannon Heavy Missile Launcher > --- INVENTORY -------- Ion Engine Light Treads Light Treads Light Treads Advanced Treads Wheel Compact Wheel Compact Wheel Huge Storage Unit High-capacity Battery Improved Sensor Array Transport Network Coupler Light Armor Plating Hacking Suite Long-range Tractor Beam EM Pulse Gun Beam Rifle Particle Gun Light Assault Rifle Heavy Missile Launcher Improved Datajack Katana Greatsword [Rating: 34] Favorites ----------- Power Ion Engine Engine Ion Engine Power Core Light Nuclear Core Propulsion Light Treads Treads Light Treads Leg Aluminum Leg Wheel Compact Wheel Flight Unit Improved Flight Unit Utility Huge Storage Unit Device Structural Scanner Storage Huge Storage Unit Processor Improved Signal Interpreter Hackware Hacking Suite Protection Light Armor Plating Weapon Light Assault Rifle Energy Gun Particle Gun Energy Cannon EM Pulse Cannon Ballistic Gun Light Assault Rifle Launcher Heavy Missile Launcher Special Weapon Mining Laser Slashing Weapon Katana Build | -11 -10 -10 -10 -9 -8 -8 ------- Run | Jun Mat Min Exi Min Mat Sto Slots Evolved 4 | . . . . . 4 . Power . | . . . . . . . Propulsion 1 | . . . . . 1 . Utility 3 | . . . . . 3 . Weapon . | . . . . . . . Parts Attached 50 | . 8 . . . 30 12 Power 6 | . 1 . . . 3 2 Engine 4 | . 1 . . . 1 2 Core 2 | . . . . . 2 . Reactor . | . . . . . . . Propulsion 15 | . 3 . . . 10 2 Treads 10 | . 1 . . . 7 2 Leg . | . . . . . . . Wheel 3 | . 2 . . . 1 . Hover . | . . . . . . . Flight 2 | . . . . . 2 . Utility 12 | . 1 . . . 8 3 Device 4 | . . . . . 4 . Storage 2 | . 1 . . . 1 . Processor 1 | . . . . . 1 . Hackware 1 | . . . . . . 1 Protection 4 | . . . . . 2 2 Artifact . | . . . . . . . Weapon 17 | . 3 . . . 9 5 Energy Gun 5 | . . . . . 3 2 Energy Cannon 2 | . . . . . 1 1 Ballistic Gun 4 | . 2 . . . 2 . Ballistic Cannon . | . . . . . . . Launcher 4 | . . . . . 2 2 Special Weapon 1 | . 1 . . . . . Impact Weapon . | . . . . . . . Slashing Weapon 1 | . . . . . 1 . Piercing Weapon . | . . . . . . . Special Melee Weapon . | . . . . . . . Unidentified Prototypes 3 | . . . . . 2 1 Parts Lost 25 | . 2 . . 1 10 12 Power 6 | . 1 . . . 2 3 Propulsion 8 | . 1 . . 1 3 3 Utility 5 | . . . . . 2 3 Weapon 6 | . . . . . 3 3 Highest Loss Streak 12 | . 1 . . 1 7 12 To Critical Strikes . | . . . . . . . Average Slot Usage (%) 84 | . 84 85 85 79 85 91 Engine 11 | . 13 14 14 14 3 1 Core 1 | . . . . . 5 5 Treads 14 | . 12 14 14 8 14 24 Wheel 11 | . 12 14 14 14 8 . Device 4 | . . . . . 21 16 Storage 12 | . 14 14 14 14 9 9 Processor 1 | . . . . . 1 9 Energy Gun 1 | . . . . . 1 15 Ballistic Gun 22 | . 26 28 28 28 9 . Naked Turns . | . . . . . . . Heaviest Build 104 | 10 87 87 87 87 104 97 Greatest Support 68 | 20 20 16 16 16 68 68 Greatest Overweight (x) 8 | . 8 5 5 5 4 4 Average Overweight (x) 4 | . 4 5 5 5 2 1 Largest Inventory Capacity 25 | . 25 25 25 25 25 25 Average Capacity 24 | . 23 25 25 25 25 25 Most Carried 25 | . 17 19 20 21 25 25 Average Carried 17 | . 8 18 19 20 21 24 Final Capacity 25 | 8 25 25 25 25 25 25 Final Carried 25 | 6 17 19 20 21 25 21 Class Distribution -------------------- 79% | Mutant 17% | Scavenger-Mutant 3% | Scavenger-Skirmisher Dominant Class ---------------- Mutant | -10/Materials Mutant | -10/Mines Mutant | -10/Exiles Mutant | -9/Mines Scavenger-Mutant | -8/Materials Scavenger-Mutant | -8/Storage Resources | -11 -10 -10 -10 -9 -8 -8 ----------- Run | Jun Mat Min Exi Min Mat Sto Matter Collected 924 | 200 156 15 2 . 260 291 Remotely . | . . . . . . . Salvage Created 1791 | . 413 . . 4 616 758 Parts 100 | . 32 . . . 34 34 Haulers Intercepted 7 | . 2 . . . 2 3 Recyclers Shooed 2 | . 1 . . . . 1 Parts Field Recycled . | . . . . . . . Retrieved Matter . | . . . . . . . Parts Self-Destructed . | . . . . . . . Prevented . | . . . . . . . Kills | -11 -10 -10 -10 -9 -8 -8 ------- Run | Jun Mat Min Exi Min Mat Sto Combat Hostiles Destroyed 27 | . 4 . . 1 12 10 Melee 1 | . . . . . 1 . Guns 14 | . 4 . . 1 3 6 Cannons 3 | . . . . . 2 1 AOE 9 | . . . . . 6 3 Classes Destroyed 11 | . 6 . . 1 3 1 Worker 5 | . . . . . 2 3 Builder 2 | . 1 . . . . 1 Hauler 7 | . 2 . . . 2 3 Recycler 3 | . 1 . . . 1 1 Operator 2 | . 1 . . . . 1 Watcher 3 | . 2 . . . 1 . Grunt 17 | . 4 . . . 9 4 Duelist 1 | . . . . . . 1 Sentry 7 | . . . . . 2 5 Hunter 1 | . . . . . 1 . Assembled 1 | . . . . 1 . . Best Kill Streak 10 | . 5 . . 1 10 9 Combat Bots Only 8 | . 4 . . 1 8 4 Max Kills in Single Turn 3 | . 1 . . 1 2 3 Gunslinging . | . . . . . . . Exploded 2 | . . . . . 2 2 Melee 1 | . . . . . 1 . Uniques/NPCs Destroyed . | . . . . . . . Combat | -11 -10 -10 -10 -9 -8 -8 -------- Run | Jun Mat Min Exi Min Mat Sto Damage Taken 3214 | . 446 . . 137 1248 1383 Core 747 | . 124 . . 64 254 305 Absorbed by Shields . | . . . . . . . Core Remaining (%) 62 | 100 . . . 24 . . Volleys Fired 143 | . 52 1 1 2 48 39 Largest 2 | . 2 2 2 2 2 2 Hottest 121 | . 100 40 40 40 63 121 Shots Fired 250 | . 102 2 2 4 76 64 Gun 224 | . 100 2 2 4 60 56 Cannon 11 | . . . . . 9 2 Launcher 13 | . . . . . 7 6 Special 2 | . 2 . . . . . Kinetic 167 | . 99 2 2 4 60 . Thermal 59 | . 3 . . . . 56 Explosive 13 | . . . . . 7 6 Electromagnetic 11 | . . . . . 9 2 Robot Hit Streak 17 | . 12 3 . 1 11 17 Robot Miss Streak 4 | . 3 1 3 4 3 2 Penetration Max . | . . . . . . . Secondary Targets 1 | . 1 . . . . . Max Gunslinging Chain 1 | . 1 . . . . . Shots Hit Robots 169 | . 66 1 . 2 52 48 Core Hits 106 | . 29 1 . 2 41 33 Critical Kills . | . . . . . . . Critical Parts Destroyed . | . . . . . . . Critical Strikes 4 | . . . . . . 4 Burn 4 | . . . . . . 4 Melee Attacks 1 | . . . . . 1 . Impact . | . . . . . . . Slashing 1 | . . . . . 1 . Piercing . | . . . . . . . Sneak Attacks . | . . . . . . . Combat Hostiles . | . . . . . . . Follow-up Attacks . | . . . . . . . Damage Inflicted 3691 | . 538 8 . 16 1598 1531 Guns 1566 | . 538 8 . 16 328 676 Cannons 232 | . . . . . 211 21 Explosions 1863 | . . . . . 1029 834 Melee 30 | . . . . . 30 . Ramming . | . . . . . . . Kinetic 878 | . 526 8 . 16 328 . Thermal 688 | . 12 . . . . 676 Explosive 1863 | . . . . . 1029 834 Electromagnetic 232 | . . . . . 211 21 Impact . | . . . . . . . Slashing 30 | . . . . . 30 . Piercing . | . . . . . . . Highest Corruption . | . . . . . . . Average Corruption . | . . . . . . . Corruption Purged . | . . . . . . . Corruption Blocked . | . . . . . . . Overload Shots . | . . . . . . . Overflow Damage 31 | . . . . . 22 9 Projectiles . | . . . . . . . Explosions 31 | . . . . . 22 9 Melee . | . . . . . . . Knockbacks . | . . . . . . . Impact . | . . . . . . . Kinetic . | . . . . . . . Secondary . | . . . . . . . Self-Inflicted Damage 255 | . . . . . 174 81 Shots 7 | . . . . . 4 3 Rammed . | . . . . . . . Targets Rammed . | . . . . . . . Kicked . | . . . . . . . Crushed . | . . . . . . . Highest Temperature 289 | . 40 . . . 68 289 Average Temperature 73 | . 13 . . . 17 113 Received Heat Transfer 1482 | . 258 . . . 576 648 Siege Activations . | . . . . . . . Robots Corrupted . | . . . . . . . Combat Hostiles . | . . . . . . . Parts Fried . | . . . . . . . Impact Corruptions . | . . . . . . . Robots Melted . | . . . . . . . Combat Hostiles . | . . . . . . . Parts Melted 6 | . . . . . . 6 Heat Transferred 1912 | . 25 . . . . 1887 Parts Sabotaged . | . . . . . . . Parts Stolen . | . . . . . . . Parts Stripped . | . . . . . . . Power Chain Reactions . | . . . . . . . Missiles Intercepted . | . . . . . . . Alert | -11 -10 -10 -10 -9 -8 -8 ------- Run | Jun Mat Min Exi Min Mat Sto Peak Influence 424 | . 162 7 . 15 371 424 Initial 84 | . . 7 . . 1 84 Average 63 | . 58 3 . 3 148 189 Maximum Alert Level 2 | . . . . . 1 2 Low Security (%) 92 | . 100 100 . 100 74 69 Level 1 7 | . . . . . 25 29 Level 2 . | . . . . . . . Level 3 . | . . . . . . . Level 4 . | . . . . . . . Level 5 . | . . . . . . . High Security . | . . . . . . . Max Security . | . . . . . . . Squads Dispatched 8 | . 2 . . . 3 3 Investigation 3 | . 1 . . . 2 . Extermination . | . . . . . . . Reinforcement 5 | . 1 . . . 1 3 Assault . | . . . . . . . Garrison . | . . . . . . . Intercept . | . . . . . . . Searches Triggered . | . . . . . . . Construction Impeded . | . . . . . . . Haulers Reinforced . | . . . . . . . Active Scanning Responses . | . . . . . . . Cargo Convoy Interrupts . | . . . . . . . Stealth | -11 -10 -10 -10 -9 -8 -8 --------- Run | Jun Mat Min Exi Min Mat Sto Distress Signals 5 | . . . . . 4 1 Communications Jammed . | . . . . . . . Distress Signals . | . . . . . . . Times Spotted 57 | . 7 . . 13 18 19 Peak Tracking Total 19 | . 4 . 2 19 9 6 Tactical Retreats 2 | . . . . 2 . . Traps | -11 -10 -10 -10 -9 -8 -8 ------- Run | Jun Mat Min Exi Min Mat Sto Traps Triggered 2 | . 1 . . . 1 . Indirectly . | . . . . . . . Trap Hack Attempts . | . . . . . . . Triggered . | . . . . . . . Disarmed . | . . . . . . . Reprogrammed . | . . . . . . . Reused . | . . . . . . . Traps Extracted . | . . . . . . . Installed . | . . . . . . . Triggered . | . . . . . . . Machines | -11 -10 -10 -10 -9 -8 -8 ---------- Run | Jun Mat Min Exi Min Mat Sto Machines Disabled 4 | . . . . . 2 2 Max in Single Turn 1 | . . . . . 1 1 Machines Repaired . | . . . . . . . Machines Sabotaged . | . . . . . . . Overloaded Fab Kills . | . . . . . . . Hacking | -11 -10 -10 -10 -9 -8 -8 --------- Run | Jun Mat Min Exi Min Mat Sto Machines Accessed 10 | . 3 . 2 1 3 1 Terminals 6 | . 2 . . 1 2 1 Fabricators . | . . . . . . . Repair Stations . | . . . . . . . Recycling Units 2 | . 1 . . . 1 . Scanalyzers . | . . . . . . . Garrison Access . | . . . . . . . Total Hacks 28 | . 14 . 2 4 7 1 Successful 12 | . 5 . 2 1 4 . Failed 16 | . 9 . . 3 3 1 Catastrophic 5 | . 3 . . . 1 1 Database Lockouts . | . . . . . . . Manual 19 | . 8 . 1 4 4 2 Terminals 22 | . 12 . . 4 5 1 Fabricators . | . . . . . . . Repair Stations . | . . . . . . . Recycling Units 4 | . 2 . . . 2 . Scanalyzers . | . . . . . . . Garrison Access . | . . . . . . . Terminal Hacks 8 | . 3 . 2 1 2 . Record 1 | . . . 1 . . . Robot Analysis 2 | . 1 . . 1 . . Terminal Index 1 | . 1 . . . . . Recall Reinforcements 1 | . 1 . . . . . Hauler Manifests 1 | . . . . . 1 . Zone Layout 1 | . . . . . 1 . EX-Prototype ID Bank 1 | . . . 1 . . . Fabricator Hacks . | . . . . . . . Repair Station Hacks . | . . . . . . . Recycling Unit Hacks 1 | . . . . . 1 . Retrieve Components 1 | . . . . . 1 . Scanalyzer . | . . . . . . . Garrison Access Hacks . | . . . . . . . Unauthorized Hacks 3 | . 2 . . . 1 . Terminals 1 | . 1 . . . . . Operators 1 | . 1 . . . . . Fabricators . | . . . . . . . Repair Stations . | . . . . . . . Recycling Units 2 | . 1 . . . 1 . Tunnel 2 | . 1 . . . 1 . Scanalyzers . | . . . . . . . Garrison Access . | . . . . . . . Data Cores Recovered 1 | . . . . . . 1 Used 1 | . . . . . . 1 Hacking Detections 7 | . 3 . . 1 2 1 Full Trace Events 2 | . 1 . . . 1 . Feedback Events . | . . . . . . . Feedback Blocked . | . . . . . . . Robot Schematics Acquired . | . . . . . . . Robots Built . | . . . . . . . Authchips . | . . . . . . . Time . | . . . . . . . Total Robot Build Rating . | . . . . . . . Part Schematics Acquired . | . . . . . . . Parts Built . | . . . . . . . Authchips . | . . . . . . . Time . | . . . . . . . Total Part Build Rating . | . . . . . . . Parts Repaired . | . . . . . . . Time . | . . . . . . . Parts Recycled . | . . . . . . . Recycled Matter . | . . . . . . . Retrieved Matter . | . . . . . . . Retrieved Components 1 | . . . . . 1 . Parts Scanalyzed . | . . . . . . . Part Schematics Acquired . | . . . . . . . Parts Damaged . | . . . . . . . Bothacking | -11 -10 -10 -10 -9 -8 -8 ------------ Run | Jun Mat Min Exi Min Mat Sto Used RIF Installer . | . . . . . . . Robots Hacked . | . . . . . . . Non-combat . | . . . . . . . Combat . | . . . . . . . Robot Hacks Applied . | . . . . . . . Relay Couplers Released . | . . . . . . . Fabnet Peak Effective % . | . . . . . . . Robots Rewired . | . . . . . . . Allies Hacked . | . . . . . . . Hacks Repelled . | . . . . . . . Allies | -11 -10 -10 -10 -9 -8 -8 -------- Run | Jun Mat Min Exi Min Mat Sto Total Allies 3 | . . 3 . . . . Largest Group 3 | . . 3 3 . . . Highest-Rated Group 40 | . . 40 40 . . . Highest-Rated Ally 16 | . . 16 16 . . . Total Orders . | . . . . . . . Ally Attacks 27 | . . . 27 . . . Total Damage 143 | . . . 143 . . . Kills 4 | . . . 4 . . . Allies Corrupted . | . . . . . . . Allies Melted . | . . . . . . . Intel | -11 -10 -10 -10 -9 -8 -8 ------- Run | Jun Mat Min Exi Min Mat Sto Robot Analysis Total 2 | . 1 . . 1 . . Derelict Logs Recovered 2 | . . 1 . 1 . . Drone Launches . | . . . . . . . Drone Recoveries . | . . . . . . . Exploration | -11 -10 -10 -10 -9 -8 -8 ------------- Run | Jun Mat Min Exi Min Mat Sto Turns Passed 3166 | . 729 833 405 421 474 304 Spaces Moved 1510 | 1 327 470 230 235 175 72 Core . | . . . . . . . Treads 124 | . . . . . 52 72 Legs 44 | 1 43 . . . . . Wheels 1342 | . 284 470 230 235 123 . Hover . | . . . . . . . Flight . | . . . . . . . Fastest Speed 120 | 120 120 175 175 175 120 235 Average Speed 175 | 120 169 175 175 175 163 244 Slowest Speed 465 | 120 200 175 175 175 235 465 Overloaded Moves . | . . . . . . . Propulsion Burnouts . | . . . . . . . Robots Hopped . | . . . . . . . Cave-ins Triggered . | . . . . . . . Exploration Rate (%) 46 | 2 50 99 61 65 23 24 Regions Visited 6 Branch Regions 4 Pre-discovered Areas 3 | . 1 . 1 . 1 . Known Exits Taken 1 | . . . . . 1 . Unknown Exits Taken 5 | 1 1 1 1 1 . . Scrap Searched 2 | . . 2 . . . . Spaces Dug 15 | . 2 . . . 13 . Terrain Destroyed 111 | . 2 . . . 52 57 Melee . | . . . . . . . Projectile 2 | . 2 . . . . . AOE 109 | . . . . . 52 57 Terrain Rammed . | . . . . . . . Walls Destroyed . | . . . . . . . Machines Disabled . | . . . . . . . Actions | -11 -10 -10 -10 -9 -8 -8 --------- Run | Jun Mat Min Exi Min Mat Sto Total 1794 | . 416 479 231 242 289 137 Wait 26 | . 8 7 . 5 5 1 Move 1504 | . 326 469 229 234 174 72 Hop . | . . . . . . . Pick Up 48 | . 17 2 1 1 22 5 Fast Attach 10 | . 1 . . . 3 6 Attach 23 | . 5 . . . 13 5 Detach 1 | . . . . . . 1 Swap 17 | . 2 . . . 14 1 Drop 21 | . 5 . . . 9 7 Fire 143 | . 52 1 1 2 48 39 Melee 1 | . . . . . 1 . Ram . | . . . . . . . Kick . | . . . . . . . Crush . | . . . . . . . Escape Stasis . | . . . . . . . Rewire . | . . . . . . . Trap . | . . . . . . . Miscellaneous . | . . . . . . . Route ------- -11/Junkyard -10/Materials (discovered 2 exits: [*Mat] / [*Min]) -10/Mines (discovered 3 exits: [*Mat x2] / *Exi) -10/Exiles -9/Mines -8/Materials (discovered 3 exits: Fac / *Sto x2) -8/Storage History --------- Turn | Location | Event 1 | -11/Junkyard | Discovered new exit (range 0) 1 | -11/Junkyard | Entered Materials 312 | -10/Materials | Build established: Mutant 502 | -10/Materials | Discovered new exit (range 7) 658 | -10/Materials | Discovered new exit (range 11) 730 | -10/Materials | Entered Mines 746 | -10/Mines | Deemed a non-threat by the Exiles lab entrance 748 | -10/Mines | Discovered new exit (range 5) 790 | -10/Mines | Assisted by bots powering up and referring to "LRC-V3" 811 | -10/Mines | Learned 4 Materials zone layouts 1367 | -10/Mines | Discovered new exit (range 4) 1481 | -10/Mines | Discovered new exit (range 9) 1563 | -10/Mines | Entered Exiles 1563 | -10/Exiles | Accompanied by 3 allies 1605 | -10/Exiles | Met 8R-AWN 1633 | -10/Exiles | Met EX-HEX 1691 | -10/Exiles | Met EX-BIN 1710 | -10/Exiles | Aligned with FarCom system 1712 | -10/Exiles | Given EX-Vault access code 1752 | -10/Exiles | Opened EX-Vault 1793 | -10/Exiles | Warned to stay clear of 0b10 Research branches 1823 | -10/Exiles | Exiles lab attacked by MAIN.C 1871 | -10/Exiles | Learned location of Zion (-7) 1922 | -10/Exiles | Discovered new exit (range 10) 1932 | -10/Exiles | Attacked by the Exiles 1968 | -10/Exiles | Entered Mines 1990 | -9/Mines | Learned Materials terminal intel 2160 | -9/Mines | Received a Rocket Launcher from a helpful Derelict 2213 | -9/Mines | Assembled infested the area 2218 | -9/Mines | Assisted by a Guerilla fighting off Assembled 2259 | -9/Mines | Core integrity fell below 50% 2372 | -9/Mines | Discovered new exit (range 5) 2389 | -9/Mines | Entered Materials 2389 | -8/Materials | Evolved 4 slots: Propulsion x1, Utility x3 2390 | -8/Materials | Identified exit to Factory 2390 | -8/Materials | Identified exit to Storage 2391 | -8/Materials | Loaded intel: 12 terminal locations 2709 | -8/Materials | Lost 7 parts (1p2n2u2w) 2731 | -8/Materials | Destroyed 8 combat bots 2763 | -8/Materials | Discovered exit to Storage (range 7) 2863 | -8/Materials | Entered Storage 3046 | -8/Storage | Core integrity fell below 50% 3150 | -8/Storage | Core integrity fell below 20% 3167 | -8/Storage | Destroyed by G-47 Trooper with Particle Gun Last Messages --------------- 03157_ K-01 Serf collects debris. 03158_ U-05 Engineer builds a Door. 03158_ K-01 Serf collects debris. 03160_ U-05 Engineer lays Concrete. 03161_ Acquired Lgt. Ion Engine. 03161_ U-05 Engineer lays Concrete. 03161_ M-13 Machinist repairs Lgt. Ion Engine. 03162_ U-05 Engineer lays Concrete. 03162_ K-01 Serf collects debris. 03163_ U-05 Engineer lays Concrete. 03163_ G-47 Trooper destroyed. 03163_ K-01 Serf destroyed. 03163_ K-01 Serf collects debris. 03163_ U-05 Engineer builds a Wall. 03165_ K-01 Serf destroyed. 03165_ G-47 Trooper destroyed. 03165_ Terminal disabled. 03167_ K-01 Serf collects debris. 03167_ Lgt. Ion Engine destroyed. 03167_ Critical hit (Burn: +37). Map ----- +----------------------------------------------------+ | ??????????????????????## ########## | | ??????????????????????## ########## | | ??????????????????????## # # | | ??????? #### T##### # # | | ???????#+########+###### # # | | ??????^ !! # = """# | | ??????^ = !/!= + """# | | ??????^ % !!%/= # """# | | ???????????########"T"## =# """# | | ???????????#### ######## = # """# | | ???????????### #![=# # | | ???????????### #=! ########## | | ???????????#"" #*=!########## | | ????????????????"" """* %!= ###?????? | | ????????????????"" """ [ % "##?????? | | ?????????????????" """ !! ##?????? | | ????????????????? gk% #?????? | | ???????????????? *[ ######### | | ????????????????###### =[ ######## | | ????????????????###### a # | | ????????????????????## """ # | | ????????????????????## [% """ # | | ????????????????????## %! """ # | | ????????????????????## = ! # | | ????????????????????## %%*""" /# | | ????????????????????## @* ! """ # | | ??????????????????###### %= """ # | | ????????????????###### #u = [ # | | ???????????? ##?#### # k #### ### | | ???????????? # o ####### | | ???????????? # # | | ???????????? # g # | | ???????????? # # r """ # | | ???????????? # /u "" """ # | | ???????????? # """ # "Y """?? | | ???????????? # """ # "" ?? | | ???????????? # """"" # ? | | ????????????###?########m ###"T"###? | | ????????????????####### ##"""###? | | ??????????????????????? ????????? | | ??????????????????????? ????????? | | ??????????????????????? ????????? | | ??????????????????????# #???????? | | ??????????????????????#######???????? | | ??????????????????????#######???????? | | ????????????????????????????????????? | | ????????????????????????????????????? | | ????????????????????????????????????? | | ????????????????????????????????????? | | ????????????????????????????????????? | +----------------------------------------------------+ Best States ------------- Heat Dissipation 45 Energy Generation 14 Energy Capacity 250 Matter Stores 300 Matter Capacity 300 Sight Range 16 Robot Scan Range 19 Terrain Scan Density 10 Additional Mass Support 6 Armor Coverage 150 Evasion (%) 55 Recoil Reduction 3 Offensive Hacking 10 Item Schematics ----------------- None Robot Schematics ------------------ None Fabricated ------------ Nothing Alien Tech Used ----------------- None Achievements -------------- None Challenges ------------ None Game ------ Seed CoreAutogunLeg Manual? 0 Play Time 00:22:04 Cumulative 234.9 hours Start 2023.03.13 @ 00:50:43 End 2023.03.13 @ 01:09:24 Sessions 1 Manual Loads 0 Difficulty Rogue Special Mode None Game No. 302 Rogue 302 Adventurer 0 Explorer 0 Win Type - Total 6 Types 1/1/3/0/0/0/1/0/0 Lore% 80 Gallery% 86 Achievement% 67 Wizard Run 0 Options --------- ASCII 0 Keyboard 0 Movement Mouse Keybinds 0 Fullscreen 1 Font 18/SmallcapsGlow Map View 76x50 Tactical HUD 1 Map Filters NONE Filters NONE Steam 1 RUN: 5d09e970-97f3-4f38-b43a-88807af521b4